bitfinex/quotes_BTCUSD_20250303
["timestamp","ask_amount","ask_price","bid_price","bid_amount"]
[1741008254716,0.02773201,93356.0,93355.0,0.18221685]
[1741008254868,0.01892175,93356.0,93355.0,0.18921685]
[1741008255099,0.01892175,93356.0,93355.0,0.18221685]
[1741008255484,0.01892175,93356.0,93355.0,0.18921685]
[1741008255909,0.00211953,93356.0,93355.0,0.18921685]
[1741008256264,0.00211953,93356.0,93355.0,0.19071635]
[1741008256465,0.00211953,93356.0,93355.0,0.18921685]
[1741008258473,0.00211953,93356.0,93355.0,0.20909022]
[1741008260365,0.01892166,93356.0,93355.0,0.20909022]
[1741008262083,0.01896166,93356.0,93355.0,0.20909022]
[1741008262503,0.01913186,93356.0,93355.0,0.20909022]
[1741008263823,0.01913186,93356.0,93355.0,0.50909022]
[1741008264020,0.00232973,93356.0,93355.0,0.50909022]
[1741008264809,2e-08,93379.0,93370.0,0.05]
[1741008265013,2e-08,93379.0,93378.0,0.47517785]
[1741008265257,2e-08,93379.0,93378.0,0.55053785]
[1741008266137,0.00196002,93387.0,93386.0,0.05]
[1741008266365,0.00207949,93387.0,93386.0,1.58804639]
[1741008266556,0.00207949,93387.0,93386.0,1.6010885]
[1741008266984,4.9e-07,93387.0,93386.0,1.6010885]
[1741008267342,4.9e-07,93387.0,93386.0,1.6510885]
[1741008268094,4.9e-07,93387.0,93386.0,1.99806187]
[1741008268297,4.9e-07,93387.0,93386.0,2.00506187]
[1741008268502,8.9e-07,93393.0,93392.0,0.510613]
[1741008268704,8.9e-07,93398.0,93397.0,0.17514485]
[1741008268903,8.9e-07,93398.0,93397.0,1.25256802]
[1741008269115,0.002,93429.0,93418.0,0.17510885]
[1741008269323,0.01098865,93419.0,93418.0,0.25042885]
[1741008269543,0.00251944,93419.0,93418.0,0.25042885]
[1741008269921,0.00251944,93419.0,93418.0,0.17510885]
[1741008270322,0.00251944,93419.0,93418.0,0.25042885]
[1741008270657,0.01099472,93419.0,93418.0,0.25042885]
[1741008270876,0.00251944,93419.0,93418.0,0.25042885]
[1741008271728,0.00251944,93419.0,93418.0,0.08232]
[1741008271928,0.00251944,93419.0,93418.0,0.007]
[1741008272049,0.01098593,93419.0,93418.0,0.007]
[1741008272256,0.01098593,93419.0,93418.0,0.014]
[1741008272463,0.01098593,93419.0,93418.0,0.007]
[1741008272701,0.01098593,93419.0,93418.0,0.014]
[1741008272906,0.01098593,93419.0,93418.0,0.18210885]
[1741008273106,0.00251944,93419.0,93418.0,0.18210885]
[1741008273305,0.00251944,93419.0,93418.0,0.18710885]
[1741008273666,0.00251944,93419.0,93418.0,0.18210885]
[1741008273866,0.00268964,93419.0,93418.0,0.18210885]
[1741008274130,0.00268964,93419.0,93418.0,0.17510885]
[1741008274449,0.00268964,93419.0,93418.0,0.17910885]
[1741008274932,0.00268964,93419.0,93418.0,0.17510885]
[1741008275138,0.00268964,93419.0,93418.0,0.18710885]
[1741008275305,0.00268964,93419.0,93418.0,0.48010885]
[1741008275694,0.00268964,93419.0,93418.0,0.48210885]
[1741008275895,0.00268964,93419.0,93418.0,0.48910885]
[1741008281611,0.00268964,93419.0,93418.0,0.50898222]
[1741008287995,0.00268964,93419.0,93418.0,0.48910885]
[1741008288410,0.00268964,93419.0,93418.0,0.18910885]
[1741008288682,0.00268964,93419.0,93418.0,0.250368]
[1741008289284,0.00268964,93419.0,93418.0,0.18910885]
[1741008289914,0.01119384,93419.0,93418.0,0.18910885]
[1741008290109,0.00268964,93419.0,93418.0,0.18910885]
[1741008290531,0.00268964,93419.0,93418.0,0.02854085]
[1741008290749,0.01118872,93419.0,93418.0,0.02854085]
[1741008291364,0.02798146,93419.0,93418.0,0.014]
[1741008291710,0.02798146,93419.0,93418.0,0.174568]
[1741008292136,0.02798146,93419.0,93418.0,0.014]
[1741008292950,0.02798146,93419.0,93418.0,0.174568]
[1741008293361,0.02798146,93419.0,93418.0,0.18910885]
[1741008293577,0.01948238,93419.0,93418.0,0.18910885]
[1741008294056,0.00268964,93419.0,93418.0,0.18910885]
[1741008295130,0.00268964,93419.0,93418.0,0.20902101]
[1741008296205,0.00268964,93419.0,93418.0,0.50902101]
[1741008301107,0.00268964,93419.0,93418.0,0.19448016]
[1741008301236,0.00268964,93419.0,93418.0,0.26988016]
[1741008301441,0.00268964,93419.0,93418.0,0.28442101]
[1741008302452,0.01118498,93419.0,93418.0,0.28442101]
[1741008302857,0.01118498,93419.0,93418.0,0.20902101]
[1741008303034,0.01118498,93419.0,93418.0,0.18910885]
[1741008303880,0.01118498,93419.0,93418.0,0.174568]
[1741008304082,0.01118498,93419.0,93418.0,0.014]
[1741008304285,0.01118498,93419.0,93418.0,0.174568]
[1741008304904,0.01118498,93419.0,93418.0,0.014]
[1741008305288,0.01118498,93419.0,93418.0,0.007]
[1741008305485,0.01118498,93419.0,93412.0,0.01454085]
[1741008305697,0.01118498,93419.0,93418.0,0.006]
[1741008306122,0.01118498,93419.0,93418.0,0.005]
[1741008306526,0.01118498,93419.0,93418.0,0.012]
[1741008306669,0.01118498,93419.0,93418.0,0.167568]
[1741008308313,0.01118498,93419.0,93418.0,0.17510885]
[1741008308708,0.00268964,93419.0,93418.0,0.18210885]
[1741008309308,0.00268964,93419.0,93418.0,0.18110885]
[1741008309704,0.00268964,93419.0,93418.0,0.18810885]
[1741008309907,0.00268964,93419.0,93418.0,0.18210885]
[1741008310557,0.00268964,93419.0,93418.0,0.17510885]
[1741008310918,0.00268964,93419.0,93418.0,0.18210885]
[1741008311779,0.00268964,93419.0,93418.0,0.18910885]
[1741008312213,0.00268964,93419.0,93418.0,0.18210885]
[1741008312419,0.00268964,93419.0,93418.0,0.17510885]
[1741008312735,0.00268964,93419.0,93418.0,0.18210885]
[1741008312948,0.00268964,93419.0,93418.0,0.18910885]
[1741008313145,0.00268964,93419.0,93418.0,0.18210885]
[1741008313355,0.00268964,93419.0,93418.0,0.18910885]
[1741008313563,0.00268964,93419.0,93418.0,0.19610885]
[1741008314123,0.00268964,93419.0,93418.0,0.18210885]
[1741008314531,0.00268964,93419.0,93418.0,0.18910885]
[1741008314801,0.00268964,93419.0,93418.0,0.18210885]
[1741008315138,0.00268964,93419.0,93418.0,0.18910885]
[1741008320393,0.00268964,93419.0,93418.0,0.014]
[1741008320607,0.01118022,93419.0,93418.0,0.014]
[1741008322116,0.02797327,93419.0,93418.0,0.174568]
[1741008322612,0.01948269,93419.0,93418.0,0.174568]
[1741008324162,0.01948269,93419.0,93418.0,0.014]
[1741008324590,0.0278739,93419.0,93418.0,0.014]
[1741008324782,0.0741739,93419.0,93418.0,0.014]
[1741008324989,0.05738085,93419.0,93418.0,0.174568]
[1741008325397,0.05738085,93419.0,93418.0,0.167568]
[1741008325839,0.05738085,93419.0,93418.0,0.174568]
[1741008326191,0.05738085,93419.0,93418.0,0.160568]
[1741008326422,0.05738085,93419.0,93418.0,0.167568]
[1741008326423,0.01208085,93419.0,93418.0,0.167568]
[1741008326823,0.01108085,93419.0,93418.0,0.160568]
[1741008327238,0.01208085,93419.0,93418.0,0.174568]
[1741008327583,0.01108085,93419.0,93418.0,0.167568]
[1741008327718,0.01208085,93419.0,93418.0,0.174568]
[1741008327901,0.01208085,93419.0,93418.0,0.18910885]
[1741008328816,0.00368964,93419.0,93418.0,0.18910885]
[1741008329158,0.00368964,93419.0,93418.0,0.18210885]
[1741008329338,0.00368964,93419.0,93418.0,0.18910885]
[1741008329664,0.0204826,93419.0,93418.0,0.18910885]
[1741008331932,0.0204826,93419.0,93418.0,0.18510885]
[1741008333079,0.0204826,93419.0,93418.0,0.20509919]
[1741008336089,0.00368964,93419.0,93418.0,0.20509919]
[1741008336291,0.00368964,93419.0,93418.0,0.50509919]
[1741008336654,0.00368964,93419.0,93418.0,0.58219919]
[1741008336860,0.45459874,93420.0,93419.0,0.47510685]
[1741008337290,0.46299675,93420.0,93419.0,0.47510685]
[1741008337492,0.45459874,93420.0,93419.0,0.47410685]
[1741008337759,0.46299856,93420.0,93419.0,0.17410685]
[1741008338034,0.46299856,93420.0,93419.0,0.19409719]
[1741008338236,0.46299856,93420.0,93419.0,0.26909719]
[1741008338937,0.46299856,93420.0,93419.0,0.25610685]
[1741008339113,0.46299856,93420.0,93419.0,0.26310685]
[1741008339313,0.46299856,93420.0,93419.0,0.25610685]
[1741008340299,0.46299856,93420.0,93419.0,0.25510685]
[1741008340488,0.46299856,93420.0,93419.0,0.24910685]
[1741008340879,0.46299856,93420.0,93419.0,0.25610685]
[1741008341433,0.46299856,93420.0,93419.0,0.27608156]
[1741008341631,0.46316896,93420.0,93419.0,0.27608156]
[1741008341898,0.46316896,93420.0,93419.0,0.28308156]
[1741008342038,0.46316896,93420.0,93419.0,0.26908156]
[1741008342245,0.46316896,93420.0,93419.0,0.27608156]
[1741008342439,0.46316896,93420.0,93419.0,0.28308156]
[1741008342893,0.46316896,93420.0,93419.0,0.27608156]
[1741008343125,0.46316896,93420.0,93419.0,0.28308156]
[1741008343882,0.46316896,93420.0,93419.0,0.27608156]
[1741008344084,0.46316896,93420.0,93419.0,0.25610685]
[1741008344672,0.46316896,93420.0,93419.0,0.18110685]
[1741008344874,0.46316896,93420.0,93419.0,0.25610685]
[1741008345614,0.46316896,93420.0,93419.0,0.26310685]
[1741008346029,0.46316896,93420.0,93419.0,0.25610685]
[1741008346466,0.46316896,93420.0,93419.0,0.26310685]
[1741008346591,0.46316896,93420.0,93419.0,0.28307449]
[1741008346802,0.46316896,93420.0,93419.0,0.26907449]
[1741008346995,0.46316896,93420.0,93419.0,0.57607449]
[1741008347202,0.45476914,93420.0,93419.0,0.66227449]
[1741008347403,0.46316545,93420.0,93419.0,0.66227449]
[1741008347609,0.46316545,93420.0,93419.0,0.66414893]
[1741008348893,3.1e-07,93429.0,93428.0,0.17509185]
[1741008349013,3.1e-07,93429.0,93428.0,0.5556899]
[1741008349214,3.1e-07,93429.0,93428.0,0.55419185]
[1741008349872,3.1e-07,93429.0,93428.0,1.6301165]
[1741008350095,3.1e-07,93429.0,93428.0,1.6371165]
[1741008350865,3.1e-07,93429.0,93428.0,1.6441165]
[1741008351202,3.1e-07,93429.0,93428.0,1.6371165]
[1741008351823,3.1e-07,93429.0,93428.0,1.64505086]
[1741008352135,3.1e-07,93429.0,93428.0,1.63805086]
[1741008352747,0.0021703,93450.0,93428.0,1.63805086]
[1741008353070,0.0021703,93450.0,93439.0,0.47507285]
[1741008354750,0.0021703,93450.0,93439.0,0.47207285]
[1741008356198,0.0021703,93450.0,93439.0,0.47907285]
[1741008359323,0.0021703,93450.0,93439.0,0.50008695]
[1741008359474,0.0021703,93450.0,93439.0,0.464532]
[1741008359682,0.0021703,93450.0,93439.0,0.164532]
[1741008359870,0.046,93446.0,93439.0,0.239492]
[1741008360658,0.24213,93440.0,93439.0,0.014]
[1741008360976,0.61223,93440.0,93439.0,0.014]
[1741008361146,0.45895267,93440.0,93439.0,0.014]
[1741008361454,0.45895267,93440.0,93439.0,0.007]
[1741008361455,0.63627135,93440.0,93439.0,0.007]
[1741008361811,0.63627135,93440.0,93439.0,0.014]
[1741008362013,0.64708006,93440.0,93439.0,0.014]
[1741008362252,0.160549,93429.0,93428.0,0.007]
[1741008362490,0.29250213,93429.0,93428.0,0.007]
[1741008362870,0.214079,93424.0,93419.0,0.0003408]
[1741008363047,0.160562,93422.0,93419.0,0.0003408]
[1741008363271,0.00724789,93421.0,93419.0,0.0003408]
[1741008363436,0.3241,93420.0,93419.0,0.0003408]
[1741008363633,0.61631621,93420.0,93419.0,0.0003408]
[1741008364149,0.63310827,93420.0,93419.0,0.0003408]
[1741008364816,0.61631621,93420.0,93419.0,0.0003408]
[1741008366009,0.61731621,93420.0,93419.0,0.0063408]
[1741008366415,0.60880605,93420.0,93419.0,0.0063408]
[1741008367777,0.60880605,93420.0,93419.0,0.0093408]
[1741008368153,0.44824105,93420.0,93419.0,0.0093408]
[1741008368877,0.44824105,93420.0,93419.0,0.1699068]
[1741008369499,0.44824105,93420.0,93419.0,0.0093408]
[1741008369842,0.60880605,93420.0,93419.0,0.0093408]
[1741008371017,0.60880605,93420.0,93419.0,0.0063408]
[1741008371457,0.60880605,93420.0,93419.0,0.0103408]
[1741008372444,0.60880605,93420.0,93419.0,0.0043408]
[1741008372766,0.60780605,93420.0,93419.0,0.0043408]
[1741008372967,0.60780605,93420.0,93419.0,0.0093408]
[1741008374829,0.62459932,93420.0,93419.0,0.0043408]
[1741008375252,0.62459932,93420.0,93419.0,0.0023408]
[1741008375636,0.62459932,93420.0,93419.0,0.0013408]
[1741008375764,0.62459932,93420.0,93419.0,0.0003408]
[1741008376010,0.60780605,93420.0,93419.0,0.0013408]
[1741008377287,0.90780605,93420.0,93419.0,0.0023408]
[1741008377514,0.591084,93409.0,93408.0,0.0003402]
[1741008377897,0.91389153,93409.0,93408.0,0.0003402]
[1741008378127,0.91389153,93409.0,93350.0,0.17655721]
[1741008378128,0.3,93408.0,93358.0,0.3]
[1741008378324,0.261572,93383.0,93356.0,0.075]
[1741008378555,0.160634,93380.0,93371.0,0.160649]
[1741008378754,0.32280325,93382.0,93359.0,0.214226]
[1741008378957,0.160639,93377.0,93358.0,0.01074348]
[1741008379211,0.22138704,93381.0,93356.0,0.075]
[1741008379364,0.007211,93376.0,93361.0,0.01454085]
[1741008379566,0.31567922,93382.0,93375.0,0.160641]
[1741008380144,0.0072098,93381.0,93361.0,0.01454085]
[1741008380743,0.0072098,93381.0,93358.0,0.01454085]
[1741008381125,0.160651,93370.0,93361.0,0.160665]
[1741008381298,0.160651,93370.0,93362.0,0.01454085]
[1741008381500,0.0072098,93381.0,93357.0,0.36875]
[1741008381501,0.00721123,93369.0,93368.0,0.160654]
[1741008381905,0.160638,93378.0,93366.0,0.160658]
[1741008382129,0.31558984,93377.0,93358.0,0.004]
[1741008382347,0.01679838,93376.0,93371.0,0.160648]
[1741008382505,0.01679838,93376.0,93366.0,0.214209]
[1741008382701,0.00721076,93375.0,93359.0,0.214226]
[1741008382883,0.214192,93374.0,93358.0,0.004]
[1741008383242,0.00721004,93373.0,93356.0,0.075]
[1741008383382,0.00721004,93373.0,93359.0,0.214226]
[1741008383588,0.01679838,93376.0,93356.0,0.075]
[1741008383784,0.00720956,93375.0,93365.0,0.160658]
[1741008384044,0.00720956,93375.0,93368.0,0.160653]
[1741008384540,0.00720956,93375.0,93367.0,0.160655]
[1741008384541,0.16785156,93375.0,93367.0,0.160655]
[1741008384748,0.16785156,93375.0,93368.0,0.004]
[1741008384749,0.001,93369.0,93368.0,0.004]
[1741008384956,0.001,93369.0,93368.0,0.164654]
[1741008385160,0.00821147,93369.0,93368.0,0.164654]
[1741008385297,0.01679838,93376.0,93365.0,0.005]
[1741008385498,0.001,93375.0,93368.0,0.004]
[1741008385874,0.00820956,93375.0,93368.0,0.218204]
[1741008386021,0.00820956,93375.0,93374.0,0.160644]
[1741008386235,0.01679838,93376.0,93374.0,0.160644]
[1741008386459,0.00820956,93375.0,93374.0,0.159644]
[1741008386993,0.001,93375.0,93374.0,0.159644]
[1741008387494,0.01679838,93376.0,93375.0,0.160642]
[1741008387719,0.01679838,93376.0,93375.0,0.159642]
[1741008388084,0.33338822,93376.0,93375.0,0.159642]
[1741008388730,0.33959802,93376.0,93374.0,0.1619848]
[1741008388931,0.34059802,93376.0,93375.0,0.002]
[1741008389739,0.34059802,93376.0,93374.0,0.0003408]
[1741008390611,0.34059802,93376.0,93375.0,0.160642]
[1741008391166,0.32479964,93376.0,93375.0,0.160642]
[1741008391366,0.32379964,93376.0,93375.0,0.160642]
[1741008391788,0.32379964,93376.0,93375.0,0.166642]
[1741008391789,0.32479964,93376.0,93375.0,0.166642]
[1741008392736,0.32379964,93376.0,93375.0,0.166642]
[1741008392916,0.32479964,93376.0,93375.0,0.167642]
[1741008393746,0.32479964,93376.0,93375.0,0.007]
[1741008393973,0.05296908,93376.0,93375.0,0.007]
[1741008394160,0.05620353,93376.0,93375.0,0.167642]
[1741008394362,0.07300046,93376.0,93375.0,0.167642]
[1741008394502,0.06629693,93376.0,93375.0,0.167642]
[1741008395516,0.06629693,93376.0,93375.0,0.007]
[1741008395744,0.06629693,93376.0,93375.0,0.167642]
[1741008395940,0.06629693,93376.0,93375.0,0.007]
[1741008396145,0.06629693,93376.0,93375.0,0.167642]
[1741008396354,0.07300046,93376.0,93375.0,0.167642]
[1741008396604,0.06629693,93376.0,93375.0,0.167642]
[1741008396994,0.01879693,93376.0,93375.0,0.167642]
[1741008397354,0.002,93376.0,93375.0,0.167642]
[1741008397745,0.002,93376.0,93375.0,0.007]
[1741008398145,0.00870353,93376.0,93375.0,0.167642]
[1741008398366,0.002,93376.0,93375.0,0.167642]
[1741008398989,0.16264,93376.0,93375.0,0.007]
[1741008399387,0.00870353,93376.0,93375.0,0.007]
[1741008400422,0.02550118,93376.0,93375.0,0.007]
[1741008400602,0.02550118,93376.0,93375.0,0.0073408]
[1741008400797,0.18614118,93376.0,93375.0,0.0073408]
[1741008401182,0.02550118,93376.0,93375.0,0.0073408]
[1741008401746,0.02550118,93376.0,93375.0,0.1679828]
[1741008402101,0.01879765,93376.0,93375.0,0.1679828]
[1741008402644,0.01879765,93376.0,93375.0,0.0073408]
[1741008403280,0.0251878,93376.0,93375.0,0.0073408]
[1741008403555,0.01879765,93376.0,93375.0,0.1679828]
[1741008403697,0.01879765,93376.0,93375.0,0.0073408]
[1741008404106,0.01879765,93376.0,93375.0,0.1679828]
[1741008404330,0.01879765,93376.0,93375.0,0.0073408]
[1741008405321,0.02518943,93376.0,93375.0,0.1679828]
[1741008405706,0.01879765,93376.0,93375.0,0.1679828]
[1741008405927,0.002,93376.0,93375.0,0.1679828]
[1741008407145,0.002,93376.0,93375.0,0.17856731]
[1741008407651,0.002,93376.0,93375.0,0.1679828]
[1741008407850,0.002,93376.0,93375.0,0.0073408]
[1741008408110,0.002,93376.0,93375.0,0.1679828]
[1741008409317,0.01879689,93376.0,93375.0,0.1679828]
[1741008409653,0.01879689,93376.0,93375.0,0.0073408]
[1741008410011,0.01879689,93376.0,93375.0,0.1679828]
[1741008412144,0.002,93376.0,93375.0,0.26382365]
[1741008412855,0.0021705,93376.0,93375.0,0.26382365]
[1741008413031,0.0011705,93376.0,93375.0,0.25782365]
[1741008413222,0.0001705,93376.0,93375.0,0.25682365]
[1741008413574,0.0001705,93376.0,93375.0,0.2452828]
[1741008413575,0.0011705,93376.0,93375.0,0.2452828]
[1741008413958,0.0011705,93376.0,93375.0,0.1639828]
[1741008414957,0.0011705,93376.0,93375.0,0.1699828]
[1741008415190,0.0011705,93376.0,93375.0,0.0093408]
[1741008415363,0.0011705,93376.0,93375.0,0.0033408]
[1741008415364,0.1618105,93376.0,93375.0,0.0033408]
[1741008415924,0.16790143,93376.0,93375.0,0.0103408]
[1741008416344,0.16690143,93376.0,93375.0,0.0003408]
[1741008416546,0.16690143,93376.0,93375.0,0.0053408]
[1741008417392,0.16690143,93376.0,93375.0,0.0003408]
[1741008417594,0.16690143,93376.0,93375.0,0.0073408]
[1741008417793,0.16790143,93376.0,93375.0,0.0073408]
[1741008418399,0.16690143,93376.0,93375.0,0.0003408]
[1741008418597,0.18369952,93376.0,93375.0,0.0053408]
[1741008419102,0.18369952,93376.0,93375.0,0.0043408]
[1741008419327,0.18369952,93376.0,93375.0,0.0003408]
[1741008419519,0.18369952,93376.0,93375.0,0.0043408]
[1741008419726,0.18369952,93376.0,93375.0,0.0073408]
[1741008424365,0.50779952,93376.0,93375.0,0.0073408]
[1741008424768,0.49100143,93376.0,93375.0,0.0073408]
[1741008425488,0.49100143,93376.0,93375.0,0.0003408]
[1741008425695,0.49100143,93376.0,93375.0,0.0023408]
[1741008426413,0.49100143,93376.0,93375.0,0.0043408]
[1741008426620,0.49100143,93376.0,93375.0,0.0023408]
[1741008427177,0.49100143,93376.0,93375.0,0.0003408]
[1741008427402,0.49100143,93376.0,93375.0,0.0023408]
[1741008427592,0.49100143,93376.0,93375.0,0.0043408]
[1741008433405,0.49100143,93376.0,93375.0,0.0003408]
[1741008433608,0.49200143,93376.0,93375.0,0.0003408]
[1741008434019,0.49100143,93376.0,93375.0,0.0003408]
[1741008434371,0.49200143,93376.0,93375.0,0.0003408]
[1741008434895,0.50780134,93376.0,93375.0,0.0003408]
[1741008435913,0.49100143,93376.0,93375.0,0.0003408]
[1741008436937,0.49100143,93376.0,93375.0,0.0023408]
[1741008437276,0.49100143,93376.0,93375.0,0.0043408]
[1741008439104,0.50780033,93376.0,93375.0,0.0043408]
[1741008440464,0.50780033,93376.0,93375.0,0.0023408]
[1741008440663,0.50780033,93376.0,93375.0,0.0003408]
[1741008440885,0.50780033,93376.0,93375.0,0.0023408]
[1741008441083,0.50780033,93376.0,93375.0,0.0033408]
[1741008441430,0.50780033,93376.0,93375.0,0.0013408]
[1741008441966,0.34716033,93376.0,93375.0,0.1619828]
[1741008442194,0.34716033,93376.0,93375.0,0.2396828]
[1741008442397,0.34716033,93376.0,93375.0,0.2386828]
[1741008442598,0.34716033,93376.0,93375.0,0.2406828]
[1741008443064,0.02306033,93376.0,93375.0,0.30915575]
[1741008443282,0.0169694,93376.0,93375.0,0.31215575]
[1741008443481,0.0169694,93376.0,93375.0,0.31015575]
[1741008443759,0.0179694,93376.0,93375.0,0.31715575]
[1741008443963,0.0179694,93376.0,93375.0,0.31615575]
[1741008444166,0.0169694,93376.0,93375.0,0.30915575]
[1741008444366,0.0179694,93376.0,93375.0,0.31615575]
[1741008444939,0.0169694,93376.0,93375.0,0.30915575]
[1741008445124,0.0179694,93376.0,93375.0,0.31615575]
[1741008445556,0.0189694,93376.0,93375.0,0.32315575]
[1741008446055,0.0021705,93376.0,93375.0,0.32315575]
[1741008448660,0.0021705,93376.0,93375.0,0.62315575]
[1741008451156,5e-07,93376.0,93375.0,0.62315575]
[1741008451377,8.8e-07,93382.0,93381.0,0.60297285]
[1741008453108,8.8e-07,93382.0,93381.0,0.60997285]
[1741008453310,8.8e-07,93382.0,93381.0,0.61697285]
[1741008453888,8.8e-07,93382.0,93381.0,0.60997285]
[1741008454267,0.00100088,93382.0,93381.0,0.61697285]
[1741008454869,0.001,93382.0,93381.0,0.61811615]
[1741008455415,0.001,93382.0,93381.0,0.62511615]
[1741008456160,0.001,93382.0,93381.0,0.64693259]
[1741008461593,0.01679147,93410.0,93409.0,0.160584]
[1741008462074,0.01679147,93410.0,93409.0,0.16070344]
[1741008462576,0.01679147,93410.0,93409.0,0.18623257]
[1741008462824,0.01679147,93410.0,93409.0,0.18923257]
[1741008463064,0.01679147,93410.0,93409.0,0.19323257]
[1741008465718,0.0455,93426.0,93419.0,0.160566]
[1741008466852,0.0455,93426.0,93419.0,0.161566]
[1741008467136,0.0455,93426.0,93419.0,0.162566]
[1741008467855,0.160557,93425.0,93419.0,0.162566]
[1741008468104,0.0455,93426.0,93419.0,0.002]
[1741008468348,0.00628683,93420.0,93419.0,0.002]
[1741008468580,0.1607354,93420.0,93419.0,0.002]
[1741008469203,0.16685183,93420.0,93419.0,0.002]
[1741008469950,0.00628683,93420.0,93419.0,0.002]
[1741008470398,0.02307721,93420.0,93419.0,0.002]
[1741008471080,0.01696078,93420.0,93419.0,0.162566]
[1741008471311,0.02307721,93420.0,93419.0,0.162566]
[1741008471540,0.01696078,93420.0,93419.0,0.162566]
[1741008471810,0.02307623,93420.0,93419.0,0.162566]
[1741008475427,0.02307623,93420.0,93419.0,0.002]
[1741008475716,0.02307623,93420.0,93419.0,0.162566]
[1741008475913,0.00628585,93420.0,93419.0,0.162566]
[1741008476747,0.0001704,93420.0,93419.0,0.162566]
[1741008477502,0.0062904,93420.0,93419.0,0.162566]
[1741008477685,0.0001704,93420.0,93419.0,0.162566]
[1741008477883,0.0062904,93420.0,93419.0,0.162566]
[1741008478205,0.0062904,93420.0,93419.0,0.002]
[1741008478880,0.18364567,93420.0,93419.0,0.002]
[1741008479286,0.02308067,93420.0,93419.0,0.002]
[1741008479994,0.18364567,93420.0,93419.0,0.002]
[1741008480740,0.31374567,93420.0,93419.0,0.002]
[1741008481259,0.15318067,93420.0,93395.0,0.160607]
[1741008481535,0.15330012,93420.0,93388.0,0.01454085]
[1741008481717,0.160596,93403.0,93397.0,0.160603]
[1741008481916,0.214101,93414.0,93388.0,0.01454085]
[1741008482128,0.00613381,93402.0,93388.0,0.01454085]
[1741008482329,0.160595,93403.0,93386.0,0.3]
[1741008482532,0.01679294,93408.0,93386.0,0.3]
[1741008482671,0.00613381,93402.0,93395.0,0.001]
[1741008482875,0.160606,93396.0,93395.0,0.001]
[1741008483297,0.16674005,93396.0,93395.0,0.001]
[1741008483701,0.18353412,93396.0,93395.0,0.001]
[1741008483899,0.50763412,93396.0,93395.0,0.001]
[1741008484347,0.16062,93388.0,93387.0,0.007]
[1741008484725,0.16673903,93388.0,93387.0,0.007]
[1741008485129,0.00611903,93388.0,93382.0,0.0003408]
[1741008485330,0.160628,93383.0,93382.0,0.0003408]
[1741008485549,0.00611783,93383.0,93382.0,0.0003408]
[1741008485795,0.3241,93396.0,93382.0,0.0003408]
[1741008485796,0.160618,93389.0,93382.0,0.0003408]
[1741008486000,0.00611639,93383.0,93382.0,0.1609708]
[1741008486155,0.3241,93396.0,93382.0,0.0003408]
[1741008486357,0.214148,93394.0,93385.0,0.160624]
[1741008486553,0.160614,93392.0,93385.0,0.160624]
[1741008486736,0.160614,93392.0,93383.0,0.214171]
[1741008486737,0.00611831,93391.0,93383.0,0.214171]
[1741008486936,0.3241,93396.0,93382.0,0.0033408]
[1741008487142,0.00611441,93395.0,93382.0,0.0033408]
[1741008487346,0.00611441,93395.0,93382.0,0.0043408]
[1741008487767,0.00611441,93395.0,93394.0,0.1609498]
[1741008488190,0.00611441,93395.0,93394.0,0.0003408]
[1741008488728,0.16672241,93395.0,93394.0,0.0003408]
[1741008489020,0.49082241,93395.0,93394.0,0.0003408]
[1741008489912,0.49082241,93395.0,93394.0,0.0013408]
[1741008490118,0.49082241,93395.0,93394.0,0.0023408]
[1741008490325,0.33021441,93395.0,93394.0,0.0023408]
[1741008490484,0.49082241,93395.0,93394.0,0.0023408]
[1741008491187,0.50761775,93395.0,93394.0,0.0023408]
[1741008495870,0.49082241,93395.0,93394.0,0.0023408]
[1741008496377,0.33021441,93395.0,93394.0,0.0023408]
[1741008499196,0.3470095,93395.0,93394.0,0.0023408]
[1741008501624,0.3470095,93395.0,93394.0,0.1629498]
[1741008501847,0.3470095,93395.0,93394.0,0.0023408]
[1741008502064,0.34089509,93395.0,93394.0,0.0023408]
[1741008502302,0.34700299,93395.0,93394.0,0.0023408]
[1741008503080,0.34700299,93395.0,93394.0,0.1629498]
[1741008503375,0.34700299,93395.0,93394.0,0.0023408]
[1741008503779,0.34700299,93395.0,93394.0,0.1629498]
[1741008505859,0.3302079,93395.0,93394.0,0.1629498]
[1741008506856,0.3302079,93395.0,93394.0,0.173579]
[1741008507354,0.3302079,93395.0,93394.0,0.18811985]
[1741008509795,0.0061079,93395.0,93394.0,0.18811985]
[1741008510253,0.0001704,93396.0,93395.0,0.01454085]
[1741008510457,0.0001704,93396.0,93395.0,0.17514885]
[1741008511784,0.0001704,93396.0,93395.0,0.17614885]
[1741008511996,0.0001704,93396.0,93395.0,0.17714885]
[1741008512658,0.0001704,93396.0,93395.0,0.17614885]
[1741008513136,0.0001704,93396.0,93395.0,0.17514885]
[1741008513587,0.0001704,93396.0,93395.0,0.18114885]
[1741008513857,0.0001704,93396.0,93395.0,0.17514885]
[1741008514077,0.0001704,93396.0,93395.0,0.18114885]
[1741008514261,0.0001704,93396.0,93395.0,0.18814885]
[1741008514746,0.0001704,93396.0,93395.0,0.18114885]
[1741008515178,0.0001704,93396.0,93395.0,0.18814885]
[1741008517077,0.0001704,93396.0,93395.0,0.173608]
[1741008518729,0.0001704,93396.0,93395.0,0.013]
[1741008518953,0.0001704,93396.0,93395.0,0.173608]
[1741008519119,0.0001704,93396.0,93395.0,0.013]
[1741008519329,0.0062848,93396.0,93395.0,0.013]
[1741008519529,0.0001704,93396.0,93395.0,0.013]
[1741008519731,0.0062848,93396.0,93395.0,0.013]
[1741008520002,0.0001704,93396.0,93395.0,0.013]
[1741008520125,0.00628662,93396.0,93395.0,0.013]
[1741008520544,0.02307969,93396.0,93395.0,0.013]
[1741008521795,0.01696347,93396.0,93395.0,0.013]
[1741008521997,0.02307696,93396.0,93395.0,0.013]
[1741008524104,0.18368296,93396.0,93395.0,0.013]
[1741008524711,0.17774843,93396.0,93395.0,0.013]
[1741008527536,0.17774843,93396.0,93395.0,0.006]
[1741008527859,0.50184843,93396.0,93395.0,0.006]
[1741008528839,0.160608,93395.0,93394.0,0.0003408]
[1741008529046,0.240608,93395.0,93394.0,0.0003408]
[1741008529272,0.24671856,93395.0,93394.0,0.0003408]
[1741008529472,0.29241856,93395.0,93394.0,0.0003408]
[1741008530057,0.29241856,93395.0,93394.0,0.0043408]
[1741008530278,0.29241856,93395.0,93394.0,0.0083408]
[1741008530481,0.29241856,93395.0,93394.0,0.0043408]
[1741008530796,0.27631856,93395.0,93394.0,0.0003408]
[1741008532610,0.27931856,93395.0,93394.0,0.0003408]
[1741008533463,0.57931856,93395.0,93394.0,0.0003408]